Cogmind - Beta 17.1 @@@ ROGUE MODE // 2026.09.02 @ 14:23:35 Player: Finn Result: Destroyed by X-57 Shotgunner with High-powered Shotgun Performance ------------- Evolutions (2) 1000 Regions Visited (4) 800 Robots Destroyed (61) 305 Value Destroyed (1755) 1755 Prototype IDs (0) 0 Alien Tech Used (0) 0 Bonus (0) 0 TOTAL SCORE: 3860 Bonus ------- None Cogmind --------- Core Integrity 0/550 Matter 300/300 Energy 99/100 System Corruption 0% Temperature Cool (0) Movement Core (50) Location -8/Materials Parts ------- > --- POWER (2) -------- (None) > --- PROPULSION (2) --- (None) > --- UTILITY (5) ------ Visual Processing Unit Signal Interpreter Terrain Scan Processor > --- WEAPON (2) ------- (None) > --- INVENTORY (5) ---- Improved Ion Engine Wheel Compact Wheel Improved Medium Armor Plating Light Assault Rifle Peak State ------------ > --- POWER ------------ Ion Engine Light Ion Engine > --- PROPULSION ------- Improved Carbon-fiber Leg Improved Carbon-fiber Leg > --- UTILITY ---------- Small Storage Unit Visual Processing Unit Signal Interpreter Terrain Scan Processor Improved Medium Armor Plating > --- WEAPON ----------- Beam Rifle EM Pulse Cannon > --- INVENTORY -------- Improved Ion Engine Improved Carbon-fiber Leg Improved Carbon-fiber Leg Wheel Compact Wheel Improved Medium Armor Plating Light Assault Rifle Heavy Assault Rifle [Rating: 26] Favorites ----------- Power Ion Engine Engine Ion Engine Power Core Light Nuclear Core Propulsion Aluminum Leg Leg Aluminum Leg Wheel Wheel Utility Small Storage Unit Device Improved Terrain Scanner Storage Small Storage Unit Processor Signal Interpreter Protection Hardened Light Armor Plating Weapon Assault Rifle Energy Gun Beam Rifle Energy Cannon EM Pulse Cannon Ballistic Gun Assault Rifle Build | -11 -10 -10 -9 -8 ------- Run | Yrd Mat Min Mat Mat Slots Evolved 4 | . . . 2 2 Power 1 | . . . . 1 Propulsion . | . . . . . Utility 3 | . . . 2 1 Weapon . | . . . . . Parts Attached 43 | 7 8 6 12 10 Power 7 | 1 1 1 1 3 Engine 6 | 1 1 1 1 2 Core 1 | . . . . 1 Reactor . | . . . . . Propulsion 15 | 2 3 3 3 4 Treads . | . . . . . Leg 9 | . . 2 3 4 Wheel 6 | 2 3 1 . . Hover . | . . . . . Flight . | . . . . . Utility 7 | 2 1 . 3 1 Device 1 | 1 . . . . Storage 1 | 1 . . . . Processor 3 | . 1 . 2 . Hackware . | . . . . . Protection 2 | . . . 1 1 Artifact . | . . . . . Weapon 14 | 2 3 2 5 2 Energy Gun 4 | 1 1 . 2 . Energy Cannon 1 | . . . . 1 Ballistic Gun 9 | 1 2 2 3 1 Ballistic Cannon . | . . . . . Launcher . | . . . . . Special Weapon . | . . . . . Impact Weapon . | . . . . . Slashing Weapon . | . . . . . Piercing Weapon . | . . . . . Special Melee Weapon . | . . . . . Unidentified Prototypes . | . . . . . Parts Lost 33 | . 7 5 11 10 Power 5 | . . 1 1 3 Propulsion 12 | . 4 1 5 2 Utility 4 | . 1 . 1 2 Weapon 12 | . 2 3 4 3 Highest Loss Streak 5 | . 2 5 3 5 To Critical Strikes . | . . . . . Average Backups 7 | 4 7 7 7 7 Power 2 | 1 2 2 3 1 Propulsion 3 | 2 3 3 3 3 Utility . | . . . . . Weapon 1 | . 1 1 . 1 Tool/Special . | . . . . . Unused Backups 11 | 1 2 . 2 6 Power 2 | . . . . 2 Propulsion 5 | 1 1 . . 3 Utility 1 | . . . . 1 Weapon 3 | . 1 . 2 . Tool/Special . | . . . . . Average Slot Usage (%) 84 | . 80 90 84 80 Engine 10 | . 14 11 6 11 Leg 11 | . . 10 17 15 Wheel 7 | . 16 13 . . Device 1 | . 7 . . . Storage 12 | . 14 14 11 6 Processor 15 | . . 14 22 27 Protection 2 | . . . 5 3 Energy Gun 5 | . 4 7 4 6 Ballistic Gun 17 | . 21 17 16 7 Peak Build Rating 26 | 9 9 11 16 26 Average Rating 10 | 5 6 7 12 19 On Entrance 7 | . 9 6 11 10 Avg Prop Armor Cover (%) . | . . . . . Naked Turns . | . . . . . Heaviest Build 24 | 15 15 13 21 24 Greatest Support 36 | 20 20 32 30 36 Greatest Overweight (x) 4 | 2 4 . 4 2 Average Overweight (x) . | . . . . . Largest Inventory Capacity 8 | 8 8 8 8 8 Average Capacity 7 | 7 8 8 8 7 Most Carried 8 | 8 8 8 8 8 Average Carried 7 | 4 7 7 7 7 Final Capacity 8 | 8 8 8 8 5 Final Carried 8 | 8 6 8 8 5 Class Distribution -------------------- 88% | Mutant 11% | Scavenger-Mutant Dominant Class ---------------- Mutant | -10/Materials Mutant | -10/Mines Mutant | -9/Materials Mutant | -8/Materials Resources | -11 -10 -10 -9 -8 ----------- Run | Yrd Mat Min Mat Mat Matter Collected 1514 | 300 379 207 493 135 Remotely . | . . . . . Salvage Created 2180 | 192 571 196 884 337 Parts 138 | 15 29 17 60 17 Haulers Intercepted . | . . . . . Recyclers Shooed . | . . . . . Parts Field Recycled . | . . . . . Retrieved Matter . | . . . . . Parts Self-Destructed . | . . . . . Prevented . | . . . . . Parts Restored . | . . . . . Kills | -11 -10 -10 -9 -8 ------- Run | Yrd Mat Min Mat Mat Combat Hostiles Destroyed 50 | . 14 6 26 4 Guns 49 | . 14 6 26 3 Cannons 1 | . . . . 1 Classes Destroyed 9 | 3 3 . 2 1 Worker 3 | 1 1 . 1 . Tunneler 3 | 3 . . . . Recycler 2 | 1 . . . 1 Watcher 3 | . 2 . 1 . Swarmer 12 | . 3 2 7 . Grunt 29 | . 11 4 12 2 Duelist 1 | . . . 1 . Sentry 6 | . . . 6 . Specialist 2 | . . . . 2 Best Kill Streak 5 | 5 3 3 5 3 Combat Bots Only 4 | . 3 3 4 3 Max Kills in Single Turn 1 | 1 1 1 1 1 Gunslinging . | . . . . . Exploded . | . . . . . Melee . | . . . . . Uniques/NPCs Destroyed . | . . . . . Combat | -11 -10 -10 -9 -8 -------- Run | Yrd Mat Min Mat Mat Hostile Shots Fired 384 | . 95 46 118 125 Missed 98 | . 22 9 21 46 Hits 286 | . 73 37 97 79 Melee 6 | . . . 6 . Projectile 280 | . 73 37 91 79 Critical Strikes 14 | . 1 1 8 4 Damage Taken 3886 | . 813 500 1339 1234 Core 1021 | . 133 93 245 550 Absorbed by Shields . | . . . . . Core Remaining (%) 49 | 100 . 9 38 . Volleys Fired 248 | 10 75 40 94 29 Largest 2 | 2 2 2 2 2 Hottest 119 | 70 70 60 76 119 Shots Fired 428 | 20 140 66 161 41 Gun 418 | 20 140 66 161 31 Cannon 10 | . . . . 10 Launcher . | . . . . . Special . | . . . . . Kinetic 322 | 10 118 50 128 16 Thermal 86 | 10 22 16 23 15 Explosive . | . . . . . Electromagnetic 20 | . . . 10 10 Robot Hit Streak 16 | 5 14 9 16 5 Robot Miss Streak 9 | 2 4 2 9 6 Penetration Max . | . . . . . Secondary Targets 2 | . 1 . 1 . Max Gunslinging Chain 1 | . 1 . 1 . Shots Hit Robots 271 | 14 86 35 112 24 Core Hits 105 | 6 29 12 49 9 Critical Kills 2 | . 2 . . . Critical Parts Destroyed 1 | . . . 1 . Critical Strikes 5 | . 3 . 2 . Burn 2 | . 1 . 1 . Destroy 3 | . 2 . 1 . Melee Attacks . | . . . . . Impact . | . . . . . Slashing . | . . . . . Piercing . | . . . . . Sneak Attacks . | . . . . . Combat Hostiles . | . . . . . Follow-up Attacks . | . . . . . Damage Inflicted 3843 | 187 1063 399 1739 455 Guns 3652 | 187 1063 398 1739 265 Cannons 179 | . . . . 179 Explosions . | . . . . . Melee . | . . . . . Ramming 12 | . . 1 . 11 Kinetic 2884 | 100 926 306 1389 163 Thermal 663 | 87 137 92 245 102 Explosive . | . . . . . Electromagnetic 284 | . . . 105 179 Impact . | . . . . . Slashing . | . . . . . Piercing . | . . . . . Highest Corruption . | . . . . . Average Corruption . | . . . . . Corruption Purged . | . . . . . Corruption Blocked . | . . . . . Overload Shots . | . . . . . Overflow Damage . | . . . . . Projectiles . | . . . . . Explosions . | . . . . . Melee . | . . . . . Knockbacks . | . . . . . Impact . | . . . . . Kinetic . | . . . . . Secondary . | . . . . . Self-Inflicted Damage . | . . . . . Shots . | . . . . . Rammed 2 | . 1 1 . . Targets Rammed 4 | . 1 1 . 2 Kicked 2 | . . . . 2 Crushed . | . . . . . Highest Temperature 466 | 63 87 115 126 466 Average Temperature 89 | 24 33 46 42 264 Received Heat Transfer 1479 | . 435 285 426 333 Effects 13 | . . . . 13 Shutdowns 4 | . . . . 4 Energy Bleed 1 | . . . . 1 Interference 4 | . . . . 4 Short Circuit 1 | . . . . 1 Damage (minor) 3 | . . . . 3 Siege Activations . | . . . . . Martial Activations . | . . . . . Shielding Activations . | . . . . . Robots Disrupted . | . . . . . Combat Hostiles . | . . . . . Robots Corrupted . | . . . . . Combat Hostiles . | . . . . . Parts Fried 1 | . . . . 1 Impact Corruptions . | . . . . . Robots Melted . | . . . . . Combat Hostiles . | . . . . . Parts Melted 1 | 1 . . . . Heat Transferred 1902 | 259 481 200 703 259 Parts Sabotaged . | . . . . . Parts Stolen . | . . . . . Parts Stripped . | . . . . . Power Chain Reactions . | . . . . . Alert | -11 -10 -10 -9 -8 ------- Run | Yrd Mat Min Mat Mat Maximum Alert Level 1 | . . . 1 . Low Security (%) 98 | 100 100 100 95 100 Level 1 1 | . . . 4 . Level 2 . | . . . . . Level 3 . | . . . . . Level 4 . | . . . . . Level 5 . | . . . . . High Security . | . . . . . Max Security . | . . . . . Peak Influence 212 | 10 62 50 212 69 Initial 69 | . 3 . 10 69 Average 37 | 2 15 5 76 14 Influence Increases 1392 | 25 366 155 751 95 Destroy 0b10 Robot/C 1000 | . 280 120 520 80 Destroy 0b10 Robot/NC 55 | 25 15 . 10 5 Destroy Leader 216 | . 54 20 132 10 Successful Hack 13 | . . . 13 . Disable Machine 30 | . . 15 15 . Destroy Structure 3 | . 2 . 1 . Lose Combat Pursuer 75 | . 15 . 60 . Influence Decreases 1392 | 20 371 127 613 261 Entered New Map 117 | . 2 . 18 97 Time Decay 1069 | 20 338 107 485 119 Lost Part 206 | . 31 20 110 45 Squads Dispatched 6 | . 2 . 2 2 Investigation 3 | . 2 . 1 . Extermination . | . . . . . Reinforcement 3 | . . . 1 2 Assault . | . . . . . Garrison . | . . . . . Intercept . | . . . . . Searches Triggered . | . . . . . Construction Impeded . | . . . . . Haulers Reinforced . | . . . . . Active Scanning Responses . | . . . . . Cargo Convoy Interrupts . | . . . . . Stealth | -11 -10 -10 -9 -8 --------- Run | Yrd Mat Min Mat Mat Distress Signals 4 | . 2 . 1 1 Communications Jammed . | . . . . . Distress Signals . | . . . . . Times Spotted 76 | . 20 8 35 13 Peak Tracking Total 8 | . 5 2 4 8 Tactical Retreats 5 | . 1 . 4 . Traps | -11 -10 -10 -9 -8 ------- Run | Yrd Mat Min Mat Mat Traps Triggered 8 | . 2 . 4 2 Indirectly . | . . . . . Trap Hack Attempts . | . . . . . Triggered . | . . . . . Disarmed . | . . . . . Reprogrammed 7 | . 7 . . . Reused . | . . . . . Traps Extracted . | . . . . . Installed . | . . . . . Triggered . | . . . . . Machines | -11 -10 -10 -9 -8 ---------- Run | Yrd Mat Min Mat Mat Machines Disabled 2 | . . 1 1 . Max in Single Turn 1 | . . 1 1 . Machines Repaired . | . . . . . Machines Dismantled . | . . . . . Machines Sabotaged . | . . . . . Overloaded Fab Kills . | . . . . . Hacking | -11 -10 -10 -9 -8 --------- Run | Yrd Mat Min Mat Mat Machines Accessed 12 | . 7 . 5 . Terminals 9 | . 6 . 3 . Fabricators . | . . . . . Repair Stations . | . . . . . Recycling Units 2 | . 1 . 1 . Scanalyzers 1 | . . . 1 . Garrison Access . | . . . . . Total Hacks 22 | . 15 . 7 . Successful 10 | . 5 . 5 . Failed 12 | . 10 . 2 . Catastrophic 3 | . 3 . . . Database Lockouts . | . . . . . Manual . | . . . . . Terminals 18 | . 13 . 5 . Fabricators . | . . . . . Repair Stations . | . . . . . Recycling Units 3 | . 2 . 1 . Scanalyzers 1 | . . . 1 . Garrison Access . | . . . . . Terminal Hacks 8 | . 4 . 4 . Robot Analysis 2 | . . . 2 . Branch Access Points 1 | . . . 1 . Reprogram Traps 2 | . 2 . . . Hauler Manifests 1 | . 1 . . . Zone Layout 2 | . 1 . 1 . Fabricator Hacks . | . . . . . Repair Station Hacks . | . . . . . Recycling Unit Hacks 2 | . 1 . 1 . Retrieve Matter 1 | . 1 . . . Retrieve Components 1 | . . . 1 . Scanalyzer . | . . . . . Garrison Access Hacks . | . . . . . Unauthorized Hacks . | . . . . . Terminals . | . . . . . Fabricators . | . . . . . Repair Stations . | . . . . . Recycling Units . | . . . . . Scanalyzers . | . . . . . Garrison Access . | . . . . . Data Cores Recovered . | . . . . . Used . | . . . . . Hacking Detections 6 | . 4 . 2 . Full Trace Events 4 | . 3 . 1 . Feedback Events . | . . . . . Feedback Blocked . | . . . . . Robot Schematics Acquired . | . . . . . Robots Built . | . . . . . Authchips . | . . . . . Time . | . . . . . Total Robot Build Rating . | . . . . . Part Schematics Acquired . | . . . . . Parts Built . | . . . . . Authchips . | . . . . . Time . | . . . . . Total Part Build Rating . | . . . . . Part Studies Acquired . | . . . . . Parts Repaired . | . . . . . Time . | . . . . . Parts Recycled . | . . . . . Recycled Matter . | . . . . . Retrieved Matter . | . . . . . Retrieved Components 9 | . . . 9 . Parts Scanalyzed . | . . . . . Part Schematics Acquired . | . . . . . Parts Damaged . | . . . . . Bothacking | -11 -10 -10 -9 -8 ------------ Run | Yrd Mat Min Mat Mat Used RIF Installer . | . . . . . Robots Hacked . | . . . . . Non-combat . | . . . . . Combat . | . . . . . Robot Hacks Applied . | . . . . . Relay Couplers Released . | . . . . . Fabnet Peak Effective % . | . . . . . Robots Rewired . | . . . . . Allies Hacked . | . . . . . Hacks Repelled . | . . . . . Allies | -11 -10 -10 -9 -8 -------- Run | Yrd Mat Min Mat Mat Total Allies . | . . . . . Largest Group . | . . . . . Highest-Rated Group . | . . . . . Highest-Rated Ally . | . . . . . Total Orders . | . . . . . Ally Attacks . | . . . . . Total Damage . | . . . . . Kills . | . . . . . Allies Corrupted . | . . . . . Allies Melted . | . . . . . Intel | -11 -10 -10 -9 -8 ------- Run | Yrd Mat Min Mat Mat Active Infowar (turns) 1523 | 33 706 . 325 459 Optics 784 | . . . 325 459 Terrain 739 | 33 706 . . . Robot Analysis Total 2 | . . . 2 . Derelict Logs Recovered 2 | . . 2 . . Drone Launches . | . . . . . Drone Recoveries . | . . . . . Exploration | -11 -10 -10 -9 -8 ------------- Run | Yrd Mat Min Mat Mat Turns Passed 5279 | 109 1250 1274 2152 494 Spaces Moved 2831 | 70 795 788 917 261 Core 323 | 19 137 . 109 58 Treads . | . . . . . Legs 1321 | . . 310 808 203 Wheels 1187 | 51 658 478 . . Hover . | . . . . . Flight . | . . . . . Fastest Speed 50 | 50 80 100 120 50 Average Speed 119 | 80 109 107 143 109 Slowest Speed 250 | 150 250 120 250 150 Overloaded Moves . | . . . . . Propulsion Burnouts . | . . . . . Robots Hopped . | . . . . . Potential Cave-ins . | . . . . . Cave-ins Triggered . | . . . . . Exploration Rate (%) 53 | 4 96 95 51 23 Regions Visited 4 Branch Regions 1 Pre-discovered Areas 1 | . . 1 . . Known Exits Taken 3 | . 1 1 1 . Unknown Exits Taken 1 | 1 . . . . Scrap Searched 1 | . . 1 . . Spaces Dug . | . . . . . Terrain Destroyed . | . . . . . Melee . | . . . . . Projectile . | . . . . . AOE . | . . . . . Terrain Rammed . | . . . . . Walls Destroyed . | . . . . . Machines Disabled . | . . . . . Actions | -11 -10 -10 -9 -8 --------- Run | Yrd Mat Min Mat Mat Total 4304 | 102 1035 1146 1595 426 Wait 1126 | . 148 306 558 114 Move 2827 | 69 794 787 916 261 Hop . | . . . . . Pick Up 37 | 15 5 4 7 6 Fast Attach 21 | 1 1 4 11 4 Attach 23 | 6 5 2 5 5 Detach . | . . . . . Swap 9 | . 3 2 1 3 Drop 9 | 1 3 . 3 2 Fire 248 | 10 75 40 94 29 Melee . | . . . . . Ram 2 | . 1 1 . . Kick 2 | . . . . 2 Crush . | . . . . . Escape Stasis . | . . . . . Rewire . | . . . . . Trap . | . . . . . Miscellaneous . | . . . . . Route ------- -11/Scrapyard -10/Materials (discovered 6 exits: *Mat x3 / *Min x2 / *Sub) -10/Mines (discovered 4 exits: *Mat x2 / *Exi / *Sub) -9/Materials (discovered 3 exits: *Mat x2 / Min) -8/Materials (discovered 1 exit: *Sto) History --------- Turn | Location | Event 5 | -11/Scrapyard | Discovered new exit (range 16) 110 | -11/Scrapyard | Entered Materials 313 | -10/Materials | Build established: Mutant 330 | -10/Materials | Discovered new exit (range 10) 675 | -10/Materials | Discovered new exit (range 7) 740 | -10/Materials | Discovered new exit (range 13) 765 | -10/Materials | Discovered new exit (range 6) 963 | -10/Materials | Discovered new exit (range 16) 1008 | -10/Materials | Discovered new exit (range 7) 1107 | -10/Materials | Core integrity fell below 50% 1299 | -10/Materials | Identified exit to Materials 1359 | -10/Materials | Identified exit to Mines 1360 | -10/Materials | Entered Mines 1367 | -10/Mines | Joined a pair of Derelicts in attacking an 0b10 outpost 1412 | -10/Mines | Assembled infested the area 1609 | -10/Mines | Learned location of Storage (-8) 1669 | -10/Mines | Discovered exit to Materials (range 6) 1678 | -10/Mines | Discovered new exit (range 8) 1686 | -10/Mines | Identified exit to Subcaves 2074 | -10/Mines | Core integrity fell below 20% 2102 | -10/Mines | Lost 5 parts (1p1n3w) 2255 | -10/Mines | Discovered exit to Materials (range 11) 2289 | -10/Mines | Discovered new exit (range 5) 2294 | -10/Mines | Identified exit to Exiles 2582 | -10/Mines | Build established: Scavenger-Mutant 2634 | -10/Mines | Entered Materials 2634 | -9/Materials | Evolved 2 slots: Utility x2 3115 | -9/Materials | Build established: Mutant 3792 | -9/Materials | Discovered new exit (range 7) 3802 | -9/Materials | Identified exit to Materials 4003 | -9/Materials | Identified exit to Mines 4238 | -9/Materials | Core integrity fell below 50% 4444 | -9/Materials | Lost 3 parts (2n1u) 4491 | -9/Materials | Discovered exit to Materials (range 17) 4786 | -9/Materials | Entered another Materials area 4786 | -8/Materials | Evolved 2 slots: Power x1, Utility x1 4846 | -8/Materials | Discovered new exit (range 14) 4941 | -8/Materials | Identified exit to Storage 5120 | -8/Materials | Core integrity fell below 50% 5179 | -8/Materials | Lost 5 parts (1p2u2w) 5262 | -8/Materials | Core integrity fell below 20% 5280 | -8/Materials | Destroyed by X-57 Shotgunner with High-powered Shotgun Last Messages --------------- 05192_ Acquired 3 matter. 05209_ Triggered Blade Trap. 05209_ Massive razor-sharp blades shoot up from within the floor. 05209_ Ion Engine severed. 05211_ Acquired Ion Engine. 05212_ Triggered Blade Trap. 05212_ Massive razor-sharp blades shoot up from within the floor. 05212_ Imp. Carbon-fiber Leg severed. 05213_ Acquired Imp. Carbon-fiber Leg. 05216_ K-01 Serf cleans the Terminal. 05217_ Imp. Carbon-fiber Leg destroyed. 05232_ W-25 Informer sends out distress signal. 05236_ Ion Engine destroyed. 05244_ Lgt. Nuclear Core destroyed. 05254_ Hvy. Assault Rifle destroyed. 05257_ Critical hit (Burn: +37). 05258_ Imp. Carbon-fiber Leg destroyed. 05259_ Y-45 Defender destroyed. Map ----- +----------------------------------------------------+ | ????????????# ##### #????#######+###### | | ????????????# """ """ #???# #????# = #??? | | ????????????# """ """ #???# #????# !! #??? | | ????????????# """ """ #???# #????# !! #??? | | ????????????# #???# #????# !! ###? | | ????????????# #???# #????########### +? | | ????????????###########???######??????????????# #? | | ??????????????????????????????????????????????# #? | | ??????????????????????????????????????????????# #? | | ??????????????????????????????????????????????# #? | | ??????????????????????????????????????????????# ? | | ??????????????????????????????????????????????# #? | | ??????????????????????????????????????????????# #? | | ????????????????????########??????????????????# #? | | ????????????????????# ! #######??????????### ## | | ????????????????????# [ # #???####+### | | ????????????????????# # ##### | | ????????????????????# """ + %! | | ????????????????????# """ # ##### ! | | ????????????????????#! """ # #???##+##### | | ????????????????????##########x#####????????## # | | ??????????????????????# #?????????# # | | ??????????????????????# #?????????# | | ??????????????????????# #?????????# | | ??????????????????????# #?????????# "T | | ??????????????????????# @ #?????????# | | ??????????????????????##############?????????# | | ?????????????????????????????????????????????# | | ?????????????????????????????????????????????# | | ?????????????????????????????????????????????# | | ?????????????????????????????????????????????##### | | ?????????????????????????????????????????????????? | | ?????????????????????????????????????????????????? | | ?????????????????????????????????????????????????? | | ?????????????????????????????????????????????????? | | ?????????????????????????????????????????????????? | | ?????????????????????????????????????????????????? | | ?????????????????????????????????????????????????? | | ?????????????????????????????????????????????????? | | ?????????????????????????????????????????????????? | | ?????????????????????????????????????????????????? | | ?????????????????????????????????????????????????? | | ?????????????????????????????????????????????????? | | ?????????????????????????????????????????????????? | | ?????????????????????????????????????????????????? | | ?????????????????????????????????????????????????? | | ?????????????????????????????????????????????????? | | ?????????????????????????????????????????????????? | | ?????????????????????????????????????????????????? | | ?????????????????????????????????????????????????? | +----------------------------------------------------+ Best States ------------- Heat Dissipation 31 Energy Generation 19 Energy Capacity 310 Matter Stores 300 Matter Capacity 300 Sight Range 18 Terrain Scan Range 16 Terrain Scan Density 85 Armor Coverage 225 Evasion (%) 55 Item Schematics ----------------- None Robot Schematics ------------------ None Fabricated ------------ Nothing Repaired ---------- Nothing Studied --------- None Alien Tech Used ----------------- None Achievements -------------- None Challenges ------------ None Game ------ Seed TripodMasterImpeller Manual? 0 Play Time 00:30:42 Cumulative 27.6 hours Start 2026.09.02 @ 13:56:19 End 2026.09.02 @ 14:23:35 Sessions 1 Manual Loads 0 Difficulty Rogue Special Mode None Game No. 65 Rogue 48 Adventurer 15 Explorer 2 Win Type - Total 0 Types 0/0/0/0/0/0/0/0/0/0 Lore% 24 Gallery% 22 Achievement% 20 Wizard Run 0 Options --------- Layout 1 ASCII 0 Keyboard 0 Movement Mouse Keybinds 0 Fullscreen 1 Font 24/Smallcaps Map View 50x35 Zoom Use 0% Tactical HUD 1 Map Filters NONE Filters NONE Steam 1 RUN: 97888433-4a03-4818-a834-bc028e0b8925